bitfinex-derivatives/quotes_ETHF0:USTF0_20210405
["timestamp","ask_amount","ask_price","bid_price","bid_amount"]
[1617628729690,2.90695,2062.4,2062.3,10.18049207]
[1617628730091,2.90695,2062.4,2062.3,5.09]
[1617628730493,2.90695,2062.4,2062.3,5.09122516]
[1617628730894,2.90695,2062.4,2062.3,10.92122516]
[1617628731894,2.90695,2062.4,2062.3,5.83]
[1617628732296,2.90695,2062.4,2062.2,6.22012805]
[1617628732696,2.90695,2062.4,2062.3,5.99]
[1617628735195,12.90695,2062.4,2062.3,5.99]
[1617628735601,12.90695,2062.4,2062.3,11.08067819]
[1617628735997,12.90695,2062.4,2062.3,5.09067819]
[1617628736397,12.90695,2062.4,2062.3,11.03067819]
[1617628736797,12.90695,2062.4,2062.3,5.94]
[1617628737197,12.90695,2062.4,2062.2,5.93]
[1617628737400,13.88815,2062.4,2062.2,12.15057894]
[1617628737599,13.88815,2062.4,2062.3,6.04]
[1617628737798,12.90695,2062.4,2062.3,2.90695]
[1617628738201,12.90695,2062.4,2062.3,8.77695]
[1617628747008,12.90695,2062.4,2062.3,5.87]
[1617628747409,15.01675,2062.4,2062.3,5.87]
[1617628748009,15.01675,2062.4,2062.3,10.96049649]
[1617628748409,15.01675,2062.4,2062.3,5.09049649]
[1617628748610,17.01675,2062.4,2062.3,5.09049649]
[1617628748809,17.01675,2062.4,2062.3,10.97049649]
[1617628749209,47.01675,2062.4,2062.3,5.88]
[1617628749408,47.01675,2062.4,2062.3,5.2805]
[1617628749611,47.01675,2062.4,2062.2,5.83]
[1617628750015,65.497,2062.2,2062.1,4.96]
[1617628750210,67.497,2062.2,2062.1,5.09646918]
[1617628750608,67.497,2062.2,2062.1,10.98646918]
[1617628750910,67.497,2062.2,2062.1,5.89]
[1617628751310,67.497,2062.2,2062.0,5.09669495]
[1617628751710,67.497,2062.2,2062.1,6.08]
[1617628752515,2.0,2062.2,2062.1,6.08]
[1617628759116,12.90695,2062.4,2062.1,6.08]
[1617628759518,12.90695,2062.4,2062.3,80.5845]
[1617628760019,12.90695,2062.4,2062.3,82.8345]
[1617628761220,12.90695,2062.4,2062.3,2.25]
[1617628761621,12.90695,2062.4,2062.2,5.81]
[1617628761921,12.90695,2062.4,2062.3,5.96]
[1617628762220,12.90695,2062.4,2062.2,11.13262268]
[1617628762623,12.90695,2062.4,2062.3,5.92]
[1617628763921,12.90695,2062.4,2062.2,6.02]
[1617628764122,12.90695,2062.4,2062.3,6.03]
[1617628764523,12.90695,2062.4,2062.2,5.95]
[1617628764823,12.90695,2062.4,2062.3,5.89]
[1617628765223,12.90695,2062.4,2062.2,5.89]
[1617628765429,12.90695,2062.4,2062.3,6.0]
[1617628765831,12.90695,2062.4,2062.2,6.07]
[1617628766032,12.90695,2062.4,2062.3,6.03]
[1617628766430,12.90695,2062.4,2062.2,5.82]
[1617628766729,12.90695,2062.4,2062.3,5.98]
[1617628767029,12.90695,2062.4,2062.2,5.97]
[1617628767429,12.90695,2062.4,2062.3,5.87]
[1617628767630,12.90695,2062.4,2062.1,5.10636946]
[1617628767830,12.90695,2062.4,2062.2,10.97728525]
[1617628768029,12.90695,2062.4,2062.3,5.84]
[1617628768230,12.90695,2062.4,2062.2,5.10728525]
[1617628768430,15.41535,2062.4,2062.2,5.10728525]
[1617628768630,15.41535,2062.4,2062.3,5.86]
[1617628769032,15.41535,2062.4,2062.2,2.46]
[1617628769331,15.41535,2062.4,2062.3,5.92]
[1617628769632,15.41535,2062.4,2062.2,5.91]
[1617628769831,2.0,2062.3,2062.2,5.91]
[1617628770032,2.0,2062.3,2062.1,5.10759978]
[1617628770231,32.0,2062.3,2062.2,5.97]
[1617628771333,32.0,2062.3,2062.2,5.72]
[1617628771531,32.0,2062.3,2062.1,5.41]
[1617628771731,68.168,2062.2,2062.1,5.41]
[1617628771934,100.168,2062.2,2062.0,4.15734187]
[1617628772135,100.168,2062.2,2062.1,5.83]
[1617628772733,100.168,2062.2,2061.8,6.1]
[1617628773136,100.168,2062.2,2062.1,5.1]
[1617628773336,100.168,2062.2,2061.7,6.24692742]
[1617628773337,100.168,2062.2,2061.9,5.96]
[1617628773736,100.168,2062.2,2062.1,6.04]
[1617628774137,100.168,2062.2,2062.0,6.02]
[1617628774338,100.168,2062.2,2062.1,5.82]
[1617628774736,100.168,2062.2,2062.0,5.82]
[1617628774937,100.168,2062.2,2062.1,5.87]
[1617628775338,100.168,2062.2,2061.7,2.32]
[1617628775539,100.168,2062.2,2062.1,6.08]
[1617628775739,100.168,2062.2,2062.1,5.8745]
[1617628775940,100.168,2062.2,2061.8,1.9]
[1617628776143,100.168,2062.2,2062.0,5.88]
[1617628776343,100.168,2062.2,2062.1,5.85]
[1617628776541,64.7799,2062.1,2061.9,1.48]
[1617628776742,32.0,2062.0,2061.4,6.24604255]
[1617628776942,32.0,2062.0,2060.2,9.65006256]
[1617628776943,32.0,2062.0,2061.8,5.84]
[1617628777349,32.0,2062.0,2061.7,0.08]
[1617628777545,32.0,2062.0,2061.9,5.93]
[1617628777744,32.0,2062.0,2061.9,5.8501]
[1617628777946,34.90695,2062.0,2061.8,0.27]
[1617628778146,34.90695,2062.0,2061.5,6.04]
[1617628778349,34.90695,2062.0,2061.4,2.57]
[1617628778648,34.90695,2062.0,2061.6,3.6]
[1617628778846,34.90695,2062.0,2061.6,3.4753]
[1617628779045,34.90695,2062.0,2061.2,0.14]
[1617628779247,70.9473,2061.5,2061.4,5.97]
[1617628779447,103.9174,2061.5,2061.1,5.88]
[1617628779647,103.9174,2061.5,2061.3,5.85]
[1617628779847,32.9701,2061.5,2061.4,5.8]
[1617628780047,35.87705,2061.5,2061.2,5.67]
[1617628780247,73.0196,2061.4,2060.8,1.57]
[1617628780447,30.0,2061.3,2061.1,5.83]
[1617628780850,30.0,2061.3,2060.9,2.23]
[1617628781053,30.0,2061.3,2061.2,5.84]
[1617628781448,30.0,2061.3,2061.0,6.07]
[1617628781650,30.0,2061.3,2061.2,5.86]
[1617628782053,30.0,2061.3,2061.1,6.02]
[1617628782449,30.0,2061.3,2061.2,5.85]
[1617628782651,30.0,2061.3,2060.9,2.94]
[1617628782851,30.0,2061.3,2060.8,5.11896608]
[1617628783052,30.0,2061.3,2060.9,10.94892664]
[1617628783350,32.0,2061.3,2060.9,10.94892664]
[1617628783552,32.0,2061.3,2060.9,5.11892664]
[1617628783752,32.0,2061.3,2061.0,6.06]
[1617628784151,2.90695,2061.1,2061.0,6.06]
[1617628784352,2.90695,2061.1,2061.0,11.17884729]
[1617628784353,3.88125,2061.1,2061.0,11.17884729]
[1617628784751,3.88125,2061.1,2060.9,5.11767229]
[1617628785052,3.88125,2061.1,2061.0,11.09760258]
[1617628785453,3.88125,2061.1,2061.0,5.11760258]
[1617628785856,3.88125,2061.1,2061.0,10.99760258]
[1617628786957,3.88125,2061.1,2061.0,5.88]
[1617628787357,3.88125,2061.1,2060.8,5.85]
[1617628787758,2.90695,2061.1,2061.0,6.06]
[1617628787958,2.90695,2061.1,2060.9,5.88]
[1617628788358,2.90695,2061.1,2060.7,2.56]
[1617628788559,2.90695,2061.1,2061.0,5.86]
[1617628788761,3.88015,2061.1,2061.0,5.86]
[1617628788959,3.88015,2061.1,2060.7,5.82]
[1617628789158,3.88015,2061.1,2061.0,6.1]
[1617628789459,3.88015,2061.1,2060.7,6.11]
[1617628790061,2.90695,2060.8,2060.7,6.11]
[1617628790261,2.90695,2060.8,2060.6,5.99]
[1617628790460,2.90695,2060.8,2060.7,6.06]
[1617628790861,2.90695,2060.8,2060.6,5.88]
[1617628791062,2.90695,2060.8,2060.7,5.94]
[1617628791363,2.90695,2060.8,2060.6,6.05]
[1617628791761,2.90695,2060.8,2060.7,5.9]
[1617628792060,2.90695,2060.8,2060.6,6.08]
[1617628792462,5.33635,2060.8,2060.6,6.08]
[1617628793063,35.33635,2060.8,2060.6,6.08]
[1617628793462,35.33635,2060.8,2060.4,5.97]
[1617628793863,35.33635,2060.8,2060.7,6.07]
[1617628794063,35.33635,2060.8,2060.5,0.39]
[1617628794463,35.33635,2060.8,2060.7,5.81]
[1617628794662,35.33635,2060.8,2060.2,5.10457612]
[1617628794663,35.33635,2060.8,2060.6,5.89]
[1617628795065,35.33635,2060.8,2060.7,5.71]
[1617628795265,35.33635,2060.8,2060.5,5.88]
[1617628795664,35.33635,2060.8,2060.4,5.9]
[1617628795864,35.33635,2060.8,2060.6,6.01]
[1617628796164,35.33635,2060.8,2060.5,5.84]
[1617628796565,35.33635,2060.8,2060.7,6.05]
[1617628796765,5.33635,2060.8,2060.6,5.96]
[1617628797167,5.33635,2060.8,2060.5,6.0]
[1617628797366,5.33635,2060.8,2060.4,6.09]
[1617628797565,2.90695,2060.8,2060.7,5.53]
[1617628797766,2.90695,2060.8,2060.7,2.0166]
[1617628798166,2.90695,2060.8,2060.7,8.0066]
[1617628799366,2.90695,2060.8,2060.7,5.99]
[1617628800569,2.90695,2060.8,2060.2,5.86]
[1617628800968,2.90695,2060.8,2060.7,5.93]
[1617628801169,2.90695,2060.8,2060.2,6.1]
[1617628801569,2.90695,2060.8,2060.7,5.89]
[1617628801770,2.90695,2060.8,2060.2,5.95]
[1617628802169,0.9597,2061.2,2060.7,6.06]
[1617628802469,0.9597,2061.2,2060.2,8.91695]
[1617628802668,0.9597,2061.2,2060.3,5.83]
[1617628802871,0.9597,2061.2,2060.8,5.99]
[1617628803269,0.9597,2061.2,2060.3,5.87]
[1617628803468,0.9597,2061.2,2060.9,5.91]
[1617628803868,0.9597,2061.2,2061.0,74.958]
[1617628804071,0.9597,2061.2,2061.0,80.948]
[1617628804271,2.90695,2061.1,2061.0,80.948]
[1617628805776,66.045,2062.0,2061.0,80.948]
[1617628805976,66.045,2062.0,2061.0,82.6743]
[1617628806177,66.045,2062.0,2061.4,2.90695]
[1617628806680,30.0,2062.3,2061.5,6.02]
[1617628808280,2.90695,2061.6,2061.5,6.02]
[1617628811689,2.90695,2061.6,2060.8,5.94]
[1617628812091,2.90695,2061.6,2061.5,5.31]
[1617628812291,2.90695,2061.6,2060.8,2.90695]
[1617628812493,2.90695,2061.6,2060.9,5.66]
[1617628812691,2.90695,2061.6,2061.5,6.11]
[1617628813091,2.90695,2061.6,2060.9,5.75]
[1617628813395,2.90695,2061.6,2061.5,5.98]
[1617628813791,2.90695,2061.6,2060.9,6.05]
[1617628813992,2.90695,2061.6,2061.5,5.84]
[1617628814293,2.90695,2061.6,2060.9,6.08]
[1617628814894,32.90695,2061.6,2060.9,6.08]
[1617628816096,55.6181,2061.4,2060.9,6.08]
[1617628816299,2.90695,2061.0,2060.7,5.97]
[1617628816697,2.90695,2061.0,2060.1,8.00152309]
[1617628816898,2.90695,2061.0,2060.8,5.83]
[1617628817299,2.90695,2061.0,2060.4,5.99]
[1617628817498,2.90695,2061.0,2060.9,5.53]
[1617628817899,66.64905,2061.0,2060.5,5.88]
[1617628818102,66.64905,2061.0,2060.9,5.93]
[1617628818501,66.64905,2061.0,2060.6,6.04]
[1617628818702,66.64905,2061.0,2060.5,5.81]
[1617628818902,66.64905,2061.0,2060.9,0.36]
[1617628819102,66.64905,2061.0,2060.7,5.91]
[1617628819302,66.64905,2061.0,2060.6,5.26]
[1617628819502,66.64905,2061.0,2060.9,5.83]
[1617628819702,66.64905,2061.0,2060.8,5.41]
[1617628819903,66.64905,2061.0,2060.7,5.45]
[1617628820102,66.64905,2061.0,2060.5,2.28]
[1617628820302,63.7421,2061.0,2060.9,6.11]
[1617628820502,63.7421,2061.0,2060.8,5.2]
[1617628820704,63.7421,2061.0,2060.6,2.07]
[1617628820903,63.7421,2061.0,2060.1,2.90695]
[1617628820904,63.7421,2061.0,2060.9,6.01]
[1617628821104,63.7421,2061.0,2060.7,5.93]
[1617628821506,63.7421,2061.0,2060.9,5.83]
[1617628821705,63.7421,2061.0,2060.4,6.07]
[1617628821906,63.7421,2061.0,2060.8,6.06]
[1617628822105,63.7421,2061.0,2060.5,6.01]
[1617628822305,2.90695,2060.6,2060.5,6.01]
[1617628822506,2.90695,2060.6,2060.2,5.89]
[1617628822705,2.90695,2060.6,2060.5,5.94]
[1617628823105,2.90695,2060.6,2060.3,5.85]
[1617628823305,5.18455,2060.6,2060.5,5.95]
[1617628823705,5.18455,2060.6,2060.1,2.90695]
[1617628823706,5.18455,2060.6,2060.4,5.83]
[1617628824105,5.18455,2060.6,2060.5,5.93]
[1617628824306,5.18455,2060.6,2060.4,5.96]
[1617628824706,2.90695,2060.6,2060.5,6.03]
[1617628824906,2.90695,2060.6,2060.2,1.57]
[1617628825108,2.90695,2060.6,2060.4,5.82]
[1617628825306,2.90695,2060.6,2060.5,5.82]
[1617628825506,2.90695,2060.6,2060.3,2.43]
[1617628825906,2.90695,2060.6,2060.5,6.04]
[1617628826205,2.90695,2060.6,2060.5,2.90695]
[1617628826606,2.90695,2060.6,2060.5,8.98695]
[1617628828111,2.90695,2060.6,2060.5,10.98695]
[1617628829315,2.90695,2060.6,2060.5,11.95625]
[1617628829516,2.90695,2060.6,2060.5,10.98695]
[1617628832419,2.90695,2060.6,2060.5,16.08624753]
[1617628833421,2.90695,2060.6,2060.5,10.98695]
[1617628834021,5.74845,2060.6,2060.5,71.49255]
[1617628834721,5.74845,2060.6,2060.5,11.95605]
[1617628834920,5.74845,2060.6,2060.5,10.98695]
[1617628836620,5.74845,2060.6,2060.5,8.98695]
[1617628839732,5.74845,2060.6,2060.5,6.08]
[1617628840132,5.74845,2060.6,2060.3,11.19336818]
[1617628840534,5.74845,2060.6,2060.3,5.10336818]
[1617628840835,5.74845,2060.6,2060.4,5.86]
[1617628842937,2.90695,2060.6,2060.4,5.86]
[1617628843136,2.90695,2060.6,2060.4,10.96438715]
[1617628843538,2.90695,2060.6,2060.4,5.10438715]
[1617628843838,2.90695,2060.6,2060.5,5.97]
[1617628844640,2.90695,2060.6,2060.4,5.87]
[1617628845040,2.90695,2060.6,2060.5,6.01]
[1617628845240,2.90695,2060.6,2060.4,11.02441249]
[1617628846844,2.90695,2060.6,2060.5,60.9108]
[1617628847245,2.90695,2060.6,2060.5,66.7508]
[1617628851349,2.90695,2060.6,2060.5,5.84]
[1617628852149,2.90695,2060.6,2060.4,0.07]
[1617628852350,4.94035,2060.6,2060.4,0.07]
[1617628852549,4.94035,2060.6,2060.5,5.89]
[1617628852750,4.94035,2060.6,2060.4,12.2206084]
[1617628853152,4.94035,2060.6,2060.5,5.86]
[1617628853350,4.94035,2060.6,2060.4,6.2506084]
[1617628853751,4.94035,2060.6,2060.5,6.03]
[1617628854153,4.94035,2060.6,2060.5,11.14434059]
[1617628854553,34.94035,2060.6,2060.5,3.43824059]
[1617628854753,34.94035,2060.6,2060.3,6.25086072]
[1617628854954,34.94035,2060.6,2060.5,4.1397]
[1617628855154,66.6871,2060.5,2060.4,2.13]
[1617628855553,66.6871,2060.5,2060.2,5.97]
[1617628855755,66.6871,2060.5,2060.4,4.98]
[1617628855952,66.6871,2060.5,2060.4,4.461]
[1617628856155,66.6871,2060.5,2060.3,6.1]
[1617628856357,34.94035,2060.6,2060.4,6.04]
[1617628856755,35.90415,2060.6,2060.0,5.87]
[1617628856956,80.9026,2060.4,2060.0,5.87]
[1617628857159,80.9026,2060.4,2059.8,6.25235112]
[1617628857160,110.9026,2060.4,2059.8,6.25235112]
[1617628857357,110.9026,2060.4,2060.0,5.91]
[1617628857756,110.9026,2060.4,2059.9,6.07]
[1617628857958,110.9026,2060.4,2060.1,5.75]
[1617628858362,110.9026,2060.4,2060.0,5.93]
[1617628858556,2.90695,2060.1,2059.9,6.06]
[1617628858756,5.37815,2060.1,2059.9,6.06]
[1617628858958,5.37815,2060.1,2059.8,1.68]
[1617628859160,5.37815,2060.1,2060.0,6.03]
[1617628859559,5.37815,2060.1,2059.8,5.84]
[1617628859758,5.37815,2060.1,2059.7,6.25281884]
[1617628859759,5.37815,2060.1,2060.0,5.9]
[1617628860159,5.37815,2060.1,2059.8,5.98]
[1617628860359,5.37815,2060.1,2060.0,6.11]
[1617628860760,5.37815,2060.1,2059.8,5.93]
[1617628860962,5.37815,2060.1,2059.7,6.25281884]
[1617628860963,5.37815,2060.1,2060.0,6.04]
[1617628861260,5.37815,2060.1,2059.7,6.25281884]
[1617628861460,5.37815,2060.1,2059.8,6.06]
[1617628861660,5.37815,2060.1,2060.0,5.83]
[1617628861861,35.37815,2060.1,2059.7,6.25281884]
[1617628862061,35.37815,2060.1,2059.8,6.07]
[1617628862260,35.37815,2060.1,2060.0,0.31]
[1617628862460,76.1395,2059.7,2059.6,6.25287196]
[1617628862660,76.1395,2059.7,210.93,111.24490696]
[1617628862661,76.1395,2059.7,2059.5,6.25357479]
[1617628862860,106.1395,2059.7,2059.6,0.55]
[1617628863262,106.1395,2059.7,2059.3,6.11]
[1617628863463,106.1395,2059.7,2059.6,0.61]
[1617628863863,106.1395,2059.7,2059.4,5.86]
[1617628864064,106.1395,2059.7,2059.6,12.29865082]
[1617628864464,106.1395,2059.7,2059.6,6.26865082]
[1617628864664,109.04645,2059.7,2059.6,6.26865082]
[1617628864865,109.04645,2059.7,2059.6,12.11865082]
[1617628865464,32.90695,2059.7,2059.6,12.11865082]
[1617628867566,32.90695,2059.7,2059.6,1.15305082]
[1617628867766,32.90695,2059.7,2057.2,2.571]
[1617628867767,32.90695,2059.7,2059.0,5.1086465]
[1617628868167,55.5924,2059.1,2058.9,10.98886322]
[1617628868367,30.0,2059.0,2058.9,5.88]
[1617628868569,32.90695,2059.0,2058.8,5.10883634]
[1617628868769,32.90695,2059.0,2058.9,5.99]
[1617628869168,32.90695,2059.0,2058.9,11.09882826]
[1617628869570,32.90695,2059.0,2058.9,5.10882826]
[1617628869972,32.90695,2059.0,2058.9,5.95]
[1617628870373,32.90695,2059.0,2058.8,5.10881732]
[1617628870573,32.90695,2059.0,2058.7,5.1090347]
[1617628870774,32.90695,2059.0,2058.9,5.87]
[1617628870974,32.90695,2059.0,2058.8,1.7]
[1617628871375,32.90695,2059.0,2058.9,6.03]
[1617628871576,32.90695,2059.0,2058.8,5.99]
[1617628871976,32.90695,2059.0,2058.9,5.34]
[1617628872177,32.90695,2059.0,2058.5,5.10937173]
[1617628872375,32.90695,2059.0,2058.8,5.87]
[1617628872575,32.90695,2059.0,2058.9,5.93]
[1617628872774,32.90695,2059.0,2058.6,0.19]
[1617628872978,32.90695,2059.0,2058.5,5.10937173]
[1617628873179,32.90695,2059.0,2058.9,6.11]
[1617628873677,32.90695,2059.0,2058.9,5.97]
[1617628874176,32.90695,2059.0,2058.6,5.89]
[1617628874377,32.90695,2059.0,2058.9,6.08]
[1617628874778,32.90695,2059.0,2058.6,5.97]
[1617628875179,90.95575,2059.0,2058.9,5.91]
[1617628875379,90.95575,2059.0,2058.6,6.11]
[1617628875781,90.95575,2059.0,2058.9,5.85]
[1617628875981,90.95575,2059.0,2058.5,1.28]
[1617628876183,90.95575,2059.0,2058.7,6.01]
[1617628876383,90.95575,2059.0,2058.4,5.10960874]
[1617628876582,90.95575,2059.0,2058.5,6.01]
[1617628876782,2.90695,2058.6,2058.4,5.10960874]
[1617628877183,5.14605,2058.6,2058.5,10.99975365]
[1617628877683,5.14605,2058.6,2058.4,5.10859083]
[1617628877883,5.14605,2058.6,2058.5,5.91]
[1617628878083,5.14605,2058.6,2058.4,5.10859083]
[1617628878485,5.14605,2058.6,2058.5,5.9]
[1617628879485,35.14605,2058.6,2058.5,5.9]
[1617628880285,35.14605,2058.6,2058.3,5.87]
[1617628880485,71.9379,2058.5,2058.3,5.87]
[1617628880685,71.9379,2058.5,2058.0,8.17412782]
[1617628880886,71.9379,2058.5,2058.4,5.84]
[1617628881087,35.14605,2058.6,2058.4,5.84]
[1617628881288,35.14605,2058.6,2058.3,6.0]
[1617628881487,35.14605,2058.6,2058.5,5.83]
[1617628881888,35.14605,2058.6,2058.4,6.0]
[1617628882087,35.14605,2058.6,2058.5,6.12]
[1617628882487,35.14605,2058.6,2058.4,6.07]
[1617628882889,35.14605,2058.6,2058.5,6.08]
[1617628883090,35.14605,2058.6,2058.0,1.0645]
[1617628883291,35.14605,2058.6,2058.3,5.86]
[1617628883491,35.14605,2058.6,2058.5,6.06]
[1617628883690,35.14605,2058.6,2058.2,5.88]
[1617628883894,35.14605,2058.6,2058.0,1.0645]
[1617628884091,35.14605,2058.6,2058.3,6.07]
[1617628884491,35.14605,2058.6,2058.1,5.87]
[1617628884691,35.14605,2058.6,2058.4,5.83]
[1617628885092,35.14605,2058.6,2058.1,6.0]
[1617628885493,35.14605,2058.6,2058.5,6.01]
[1617628885694,35.14605,2058.6,2058.1,6.04]
[1617628885993,35.14605,2058.6,2058.5,5.92]
[1617628886293,35.14605,2058.6,2058.1,5.92]
[1617628886694,35.14605,2058.6,2058.5,5.98]
[1617628886895,35.14605,2058.6,2058.1,6.03]
[1617628887094,64.9054,2058.3,2058.1,6.03]
[1617628887294,30.0,2058.2,2058.1,6.03]
[1617628888494,30.9715,2058.2,2058.1,6.03]
[1617628888894,32.90695,2058.2,2058.1,6.03]
[1617628891997,2.90695,2058.2,2058.1,6.03]
[1617628894701,2.90695,2058.2,2058.1,8.5921]
[1617628896806,2.90695,2058.2,2058.1,6.03]
[1617628902109,2.90695,2058.2,2058.1,8.03]
[1617628903609,2.90695,2058.2,2058.1,6.03]
[1617628910518,32.90695,2058.2,2058.1,6.03]
[1617628912622,33.89265,2058.2,2058.1,6.03]
[1617628912923,32.90695,2058.2,2058.1,6.03]
[1617628914422,33.86915,2058.2,2058.1,6.03]
[1617628915223,32.90695,2058.2,2058.1,6.03]
[1617628916126,33.87965,2058.2,2058.1,6.03]
[1617628920530,32.90695,2058.2,2058.1,6.03]
[1617628922732,33.86795,2058.2,2058.1,6.03]
[1617628927136,33.86795,2058.2,2058.1,5.0709]
[1617628928541,33.86795,2058.2,2058.1,3.1299]
[1617628928941,33.86795,2058.2,2058.1,1.2139]
[1617628929540,35.86795,2058.2,2058.1,1.2139]
[1617628929942,35.86795,2058.2,2056.5,2.0]
[1617628930141,59.538,2057.6,2056.5,2.0]
[1617628930341,30.0,2057.5,2056.6,6.11]
[1617628931143,5.86795,2058.2,2057.2,73.8923]
[1617628931342,2.90695,2057.3,2057.2,73.8923]
[1617628931742,2.90695,2057.3,2057.2,79.9423]
[1617628932542,2.90695,2057.3,2057.2,6.05]
[1617628932941,2.90695,2057.3,2056.4,6.0]
[1617628933342,30.0,2057.5,2057.2,6.02]
[1617628933542,30.0,2057.5,2056.4,5.83]
[1617628935346,2.90695,2056.5,2056.4,5.83]
[1617628936646,2.90695,2056.5,2056.4,6.8066]
[1617628936845,2.90695,2056.5,2056.4,5.83]
[1617628938148,2.90695,2056.5,2056.3,5.84]
[1617628938550,2.90695,2056.5,2056.4,6.1]
[1617628938749,2.90695,2056.5,2056.2,78.266]
[1617628938750,2.90695,2056.5,2056.3,5.95]
[1617628939050,2.90695,2056.5,2056.4,6.06]
[1617628939449,2.90695,2056.5,2056.3,5.86]
[1617628939650,2.90695,2056.5,2056.4,6.07]
[1617628939951,2.90695,2056.5,2056.3,5.84]
[1617628940349,2.90695,2056.5,2056.4,6.11]
[1617628940552,2.90695,2056.5,2056.3,5.83]
[1617628940951,2.90695,2056.5,2056.4,5.84]
[1617628941150,2.90695,2056.5,2056.3,8.4726]
[1617628941553,2.90695,2056.5,2056.4,5.87]
[1617628941751,2.90695,2056.5,2056.3,2.5926]
[1617628942155,2.90695,2056.5,2056.4,5.96]
[1617628943557,2.90695,2056.5,2056.4,67.7961]
[1617628943757,2.90695,2056.5,2056.4,61.8361]
[1617628944159,2.90695,2056.5,2056.4,67.9261]
[1617628947765,32.90695,2056.5,2056.4,6.09]
[1617628948164,32.90695,2056.5,2056.2,5.84]
[1617628948364,34.99425,2056.5,2056.2,5.84]
[1617628948564,34.99425,2056.5,2056.4,5.83]
[1617628948764,34.99425,2056.5,2056.2,5.84]
[1617628949165,34.99425,2056.5,2056.4,5.93]
[1617628949367,34.99425,2056.5,2056.3,5.85]
[1617628949764,34.99425,2056.5,2056.2,5.99]
[1617628949964,34.99425,2056.5,2056.4,5.87]
[1617628950366,34.99425,2056.5,2056.3,5.85]
[1617628950565,34.99425,2056.5,2056.2,5.88]
[1617628950763,34.99425,2056.5,2056.1,4.15]
[1617628950964,34.99425,2056.5,2056.4,5.84]
[1617628951164,34.99425,2056.5,2056.3,5.84]
[1617628951364,34.99425,2056.5,2056.1,2.954]
[1617628951564,34.99425,2056.5,2055.8,50.0]
[1617628951765,78.0069,2056.1,2056.0,14.4578]
[1617628951974,108.0069,2056.1,2056.0,14.4578]
[1617628952166,108.0069,2056.1,2056.0,20.5678]
[1617628952967,108.9655,2056.1,2056.0,20.5678]
[1617628953368,111.87245,2056.1,2056.0,20.5678]
[1617628953566,111.87245,2056.1,2056.0,19.5888]
[1617628954569,111.87245,2056.1,2056.0,17.4789]
[1617628954769,111.87245,2056.1,2056.0,16.0045]
[1617628955069,111.87245,2056.1,2056.0,15.7965]
[1617628955268,111.87245,2056.1,2056.0,15.6625]
[1617628955468,111.87245,2056.1,2056.0,13.3535]
[1617628957569,33.86555,2056.1,2056.0,13.3535]
[1617628958369,32.90695,2056.1,2056.0,13.3535]
[1617628958570,2.90695,2056.1,2056.0,13.3535]
[1617628959370,2.90695,2056.1,2056.0,15.3535]
[1617628959772,2.90695,2056.1,2056.0,13.3535]
[1617628960771,2.90695,2056.1,2056.0,15.3535]
[1617628961173,2.90695,2056.1,2056.0,13.3535]
[1617628962175,2.90695,2056.1,2056.0,15.3535]
[1617628963076,2.90695,2056.1,2056.0,13.3535]
[1617628965077,2.90695,2056.1,2056.0,12.6492]
[1617628980495,5.59125,2056.1,2056.0,12.6492]
[1617628981694,2.90695,2056.1,2056.0,12.6492]
[1617628983095,2.90695,2056.1,2056.0,14.6492]
[1617628985502,2.90695,2056.1,2056.0,17.55615]
[1617628995618,32.5737,2057.8,2056.0,17.55615]
[1617628995619,30.961,2058.2,2056.0,17.55615]
[1617628995819,30.961,2058.2,2056.7,57.491]
[1617628996020,30.961,2058.2,2056.7,60.2445]
[1617628996221,30.961,2058.2,2056.8,5.91]
[1617628996420,30.961,2058.2,2056.9,2.0]
[1617628996820,30.961,2058.2,2057.0,5.84]
[1617628997019,30.0,2058.2,2057.1,2.0]
[1617628997521,30.0,2058.2,2057.2,5.94]
[1617628997720,2.90695,2057.3,2057.2,8.3089]
[1617628997922,2.90695,2057.3,2057.2,2.3689]
[1617628998321,2.90695,2057.3,2057.2,8.3489]
[1617629003727,2.90695,2057.3,2057.2,10.3489]
[1617629004128,30.0,2059.2,2057.2,10.3489]
[1617629004325,30.0,2059.2,2058.1,59.3708]
[1617629004526,82.0099,2059.4,2058.1,62.0013]
[1617629004728,81.0415,2059.4,2058.2,5.94]
[1617629004933,81.0415,2059.4,2058.3,2.0]
[1617629005325,81.0415,2059.4,2058.4,5.91]
[1617629005526,81.0415,2059.4,2058.5,2.0]
[1617629005726,2.90695,2058.6,2058.5,2.0]
[1617629006126,2.90695,2058.6,2058.5,5.0]
[1617629007727,2.90695,2058.6,2058.5,7.90695]
[1617629007929,2.90695,2058.6,2058.5,64.51295]
[1617629009328,0.9656,2060.1,2058.5,7.90695]